[Event "Early-Titled-Tuesday-Blitz-April-02-2024"]
[Site "Chess.com"]
[Date "2024.04.02"]
[Round "4"]
[White "Byniolus"]
[Black "shimastream"]
[Result "1-0"]
[WhiteElo "2769"]
[BlackElo "2998"]
[TimeControl "180+1"]
[EndTime "8:35:44 PDT"]
[Termination "Byniolus won by checkmate"]

1. d4 {[%clk 0:03:00.9]} 1... h5 {[%clk 0:02:50.5]} 2. Nf3 {[%clk 0:03:00.6]}
2... d6 {[%clk 0:02:47.6]} 3. c4 {[%clk 0:02:59.3]} 3... Nd7 {[%clk 0:02:43.4]}
4. Nc3 {[%clk 0:02:54.7]} 4... e5 {[%clk 0:02:42.7]} 5. e4 {[%clk 0:02:51.1]}
5... c6 {[%clk 0:02:41]} 6. Be3 {[%clk 0:02:48.5]} 6... Ngf6 {[%clk 0:02:40.1]}
7. h3 {[%clk 0:02:48.7]} 7... Be7 {[%clk 0:02:39.1]} 8. Be2 {[%clk 0:02:47.5]}
8... Qc7 {[%clk 0:02:39.2]} 9. O-O {[%clk 0:02:44.6]} 9... h4 {[%clk 0:02:27.2]}
10. Rc1 {[%clk 0:02:40.7]} 10... Nf8 {[%clk 0:02:19.6]} 11. c5 {[%clk
0:02:35.8]} 11... exd4 {[%clk 0:02:18.7]} 12. cxd6 {[%clk 0:02:33.9]} 12... Bxd6
{[%clk 0:02:14.2]} 13. Nb5 {[%clk 0:02:29]} 13... Qd8 {[%clk 0:02:14.1]} 14.
Nxd6+ {[%clk 0:02:25.4]} 14... Qxd6 {[%clk 0:02:15]} 15. e5 {[%clk 0:02:10.5]}
15... Qe6 {[%clk 0:02:13.7]} 16. exf6 {[%clk 0:02:07.1]} 16... dxe3 {[%clk
0:02:11.8]} 17. fxg7 {[%clk 0:02:06.5]} 17... Rg8 {[%clk 0:02:09.3]} 18. gxf8=Q+
{[%clk 0:02:06.6]} 18... Kxf8 {[%clk 0:02:08]} 19. Qd8+ {[%clk 0:02:01.6]} 19...
Kg7 {[%clk 0:02:08]} 20. Qxh4 {[%clk 0:01:56.7]} 20... exf2+ {[%clk 0:02:03.1]}
21. Rxf2 {[%clk 0:01:51.2]} 21... Kf8 {[%clk 0:02:00.8]} 22. Bc4 {[%clk
0:01:35.1]} 22... Qe3 {[%clk 0:01:58.9]} 23. Re1 {[%clk 0:01:29.1]} 23... Qc5
{[%clk 0:01:55.9]} 24. b4 {[%clk 0:01:14.7]} 24... Qb6 {[%clk 0:01:52.7]} 25.
Qe7+ {[%clk 0:01:10.7]} 25... Kg7 {[%clk 0:01:52.2]} 26. Qxf7+ {[%clk 0:01:11]}
26... Kh8 {[%clk 0:01:51.9]} 27. Qxg8# {[%clk 0:01:11.2]} 1-0

[Event "Early-Titled-Tuesday-Blitz-April-02-2024"]
[Site "Chess.com"]
[Date "2024.04.02"]
[Round "4"]
[White "stollenmonster"]
[Black "Lukianoo"]
[Result "0-1"]
[WhiteElo "2910"]
[BlackElo "2818"]
[TimeControl "180+1"]
[EndTime "8:35:54 PDT"]
[Termination "Lukianoo won by resignation"]

1. e4 {[%clk 0:03:00.9]} 1... c6 {[%clk 0:03:00.3]} 2. g3 {[%clk 0:02:58.9]}
2... d5 {[%clk 0:03:00.6]} 3. Bg2 {[%clk 0:02:59.6]} 3... dxe4 {[%clk
0:03:00.6]} 4. Bxe4 {[%clk 0:02:59.3]} 4... Nf6 {[%clk 0:03:00.8]} 5. Bg2 {[%clk
0:02:59.4]} 5... Bg4 {[%clk 0:02:59]} 6. Ne2 {[%clk 0:02:58.9]} 6... Nbd7 {[%clk
0:02:57]} 7. Nbc3 {[%clk 0:02:59.4]} 7... Ne5 {[%clk 0:02:53.6]} 8. d4 {[%clk
0:02:55.8]} 8... Ng6 {[%clk 0:02:28.8]} 9. h3 {[%clk 0:02:53.6]} 9... Bxe2
{[%clk 0:02:27.3]} 10. Nxe2 {[%clk 0:02:54.5]} 10... e6 {[%clk 0:02:25]} 11. O-O
{[%clk 0:02:54.4]} 11... Bd6 {[%clk 0:02:24.3]} 12. c4 {[%clk 0:02:54.9]} 12...
O-O {[%clk 0:02:22.4]} 13. Nc3 {[%clk 0:02:55.5]} 13... Qc7 {[%clk 0:02:21]} 14.
Bg5 {[%clk 0:02:53.5]} 14... Be7 {[%clk 0:02:15]} 15. Qe2 {[%clk 0:02:50]} 15...
h6 {[%clk 0:02:13.3]} 16. Be3 {[%clk 0:02:48.4]} 16... Rfe8 {[%clk 0:02:11.6]}
17. Rac1 {[%clk 0:02:48.5]} 17... Rad8 {[%clk 0:02:05.7]} 18. Rfd1 {[%clk
0:02:48.7]} 18... Qb8 {[%clk 0:02:03.1]} 19. Qc2 {[%clk 0:02:46.5]} 19... Bd6
{[%clk 0:01:54.6]} 20. Ne4 {[%clk 0:02:35.8]} 20... Nxe4 {[%clk 0:01:53.2]} 21.
Bxe4 {[%clk 0:02:36.7]} 21... Bxg3 {[%clk 0:01:44.4]} 22. Bxg6 {[%clk
0:02:35.7]} 22... fxg6 {[%clk 0:01:44.7]} 23. Qxg6 {[%clk 0:02:35.1]} 23... Bf4
{[%clk 0:01:44.9]} 24. Rc3 {[%clk 0:02:32.6]} 24... c5 {[%clk 0:01:22.8]} 25.
Bxf4 {[%clk 0:02:09.9]} 25... Qxf4 {[%clk 0:01:23.7]} 26. d5 {[%clk 0:02:10.3]}
26... exd5 {[%clk 0:01:18.5]} 27. Rxd5 {[%clk 0:02:10.6]} 27... Re1+ {[%clk
0:01:14.6]} 28. Kg2 {[%clk 0:02:10.4]} 28... Rf8 {[%clk 0:01:10]} 29. Rc2 {[%clk
0:01:57.5]} 29... Qf3+ {[%clk 0:01:07.7]} 0-1

[Event "Early-Titled-Tuesday-Blitz-April-02-2024"]
[Site "Chess.com"]
[Date "2024.04.02"]
[Round "4"]
[White "Aygehovit1992"]
[Black "WindWhistler11"]
[Result "1-0"]
[WhiteElo "2839"]
[BlackElo "2427"]
[TimeControl "180+1"]
[EndTime "8:36:03 PDT"]
[Termination "Aygehovit1992 won by checkmate"]

1. e4 {[%clk 0:03:00.9]} 1... e6 {[%clk 0:02:55.4]} 2. d4 {[%clk 0:03:00.8]}
2... d5 {[%clk 0:02:56]} 3. Nc3 {[%clk 0:03:01.7]} 3... Bb4 {[%clk 0:02:55.9]}
4. e5 {[%clk 0:03:01.6]} 4... Ne7 {[%clk 0:02:56.4]} 5. Qg4 {[%clk 0:03:00.8]}
5... Nf5 {[%clk 0:02:56]} 6. Bd3 {[%clk 0:02:59.8]} 6... O-O {[%clk 0:02:55]} 7.
Nf3 {[%clk 0:02:59]} 7... f6 {[%clk 0:02:54.4]} 8. exf6 {[%clk 0:02:51.9]} 8...
Qxf6 {[%clk 0:02:54.1]} 9. Bg5 {[%clk 0:02:51.7]} 9... Qg6 {[%clk 0:02:41.4]}
10. Ne5 {[%clk 0:02:51.8]} 10... Qe8 {[%clk 0:02:39.8]} 11. h4 {[%clk
0:02:49.2]} 11... Nc6 {[%clk 0:02:38.2]} 12. O-O-O {[%clk 0:02:45.7]} 12...
Ncxd4 {[%clk 0:02:18.1]} 13. Bxf5 {[%clk 0:02:40.6]} 13... Bxc3 {[%clk
0:02:08.5]} 14. Bxh7+ {[%clk 0:02:40.6]} 14... Kxh7 {[%clk 0:02:07.7]} 15. bxc3
{[%clk 0:02:41.3]} 15... Nc6 {[%clk 0:01:56.8]} 16. Rde1 {[%clk 0:02:41]} 16...
Rf5 {[%clk 0:01:31.3]} 17. Bf4 {[%clk 0:02:31.3]} 17... Qf8 {[%clk 0:01:18.4]}
18. Qg6+ {[%clk 0:02:25.3]} 18... Kg8 {[%clk 0:01:10.9]} 19. g3 {[%clk 0:02:20]}
19... Nxe5 {[%clk 0:01:04.2]} 20. Rxe5 {[%clk 0:02:16.5]} 20... Rxe5 {[%clk
0:00:32.7]} 21. Bxe5 {[%clk 0:02:16]} 21... Bd7 {[%clk 0:00:32.4]} 22. h5 {[%clk
0:02:14.1]} 22... Qf5 {[%clk 0:00:21.8]} 23. Qxg7# {[%clk 0:02:13]} 1-0

[Event "Early-Titled-Tuesday-Blitz-April-02-2024"]
[Site "Chess.com"]
[Date "2024.04.02"]
[Round "4"]
[White "enriquebutti"]
[Black "VanRommel28"]
[Result "0-1"]
[WhiteElo "2197"]
[BlackElo "2498"]
[TimeControl "180+1"]
[EndTime "8:36:22 PDT"]
[Termination "VanRommel28 won by resignation"]

1. d4 {[%clk 0:03:00]} 1... g6 {[%clk 0:02:58.4]} 2. e4 {[%clk 0:02:57.2]} 2...
Bg7 {[%clk 0:02:58.3]} 3. Nc3 {[%clk 0:02:56.6]} 3... d6 {[%clk 0:02:58.7]} 4.
Be3 {[%clk 0:02:55]} 4... a6 {[%clk 0:02:58.8]} 5. a4 {[%clk 0:02:51.4]} 5... b6
{[%clk 0:02:58.7]} 6. f3 {[%clk 0:02:50.4]} 6... Nd7 {[%clk 0:02:57.5]} 7. Qd2
{[%clk 0:02:49.2]} 7... Bb7 {[%clk 0:02:56.5]} 8. h4 {[%clk 0:02:46.2]} 8... h5
{[%clk 0:02:56.4]} 9. Nh3 {[%clk 0:02:44.7]} 9... c5 {[%clk 0:02:54.3]} 10. d5
{[%clk 0:02:43.4]} 10... Ngf6 {[%clk 0:02:52.1]} 11. Ng5 {[%clk 0:02:40.8]}
11... Ne5 {[%clk 0:02:48.7]} 12. Be2 {[%clk 0:02:33.3]} 12... Bc8 {[%clk
0:02:48.5]} 13. O-O {[%clk 0:02:24.5]} 13... O-O {[%clk 0:02:47.8]} 14. Kh1
{[%clk 0:02:21.3]} 14... Bd7 {[%clk 0:02:47.6]} 15. Nd1 {[%clk 0:02:11.5]} 15...
b5 {[%clk 0:02:47.2]} 16. axb5 {[%clk 0:02:10.6]} 16... axb5 {[%clk 0:02:47.8]}
17. Rxa8 {[%clk 0:02:10.5]} 17... Qxa8 {[%clk 0:02:48.7]} 18. Nf2 {[%clk
0:02:08]} 18... Qa2 {[%clk 0:02:43]} 19. b3 {[%clk 0:02:04.7]} 19... Ra8 {[%clk
0:02:34]} 20. f4 {[%clk 0:02:03.6]} 20... Neg4 {[%clk 0:02:31.2]} 21. Nxg4
{[%clk 0:02:03]} 21... Nxg4 {[%clk 0:02:30.9]} 22. Bxg4 {[%clk 0:02:01.9]} 22...
Bxg4 {[%clk 0:02:14.8]} 23. f5 {[%clk 0:02:01.4]} 23... Qb2 {[%clk 0:02:14.1]}
24. fxg6 {[%clk 0:01:11.5]} 24... fxg6 {[%clk 0:02:15]} 25. Ne6 {[%clk
0:01:08.1]} 25... Ra1 {[%clk 0:02:06.9]} 26. Rxa1 {[%clk 0:01:06.2]} 26... Qxa1+
{[%clk 0:02:07.8]} 27. Kh2 {[%clk 0:01:05.7]} 27... Bxe6 {[%clk 0:01:50.3]} 28.
dxe6 {[%clk 0:01:05.1]} 28... Qe5+ {[%clk 0:01:48.1]} 29. g3 {[%clk 0:01:01.9]}
29... Qxe4 {[%clk 0:01:45.3]} 0-1

[Event "Early-Titled-Tuesday-Blitz-April-02-2024"]
[Site "Chess.com"]
[Date "2024.04.02"]
[Round "4"]
[White "Dixit_Nikhil"]
[Black "bascheyaro"]
[Result "0-1"]
[WhiteElo "2638"]
[BlackElo "2802"]
[TimeControl "180+1"]
[EndTime "8:36:24 PDT"]
[Termination "bascheyaro won by checkmate"]

1. e4 {[%clk 0:03:00.9]} 1... e6 {[%clk 0:02:59.7]} 2. d4 {[%clk 0:02:59.1]}
2... d5 {[%clk 0:03:00.2]} 3. e5 {[%clk 0:02:59.7]} 3... c5 {[%clk 0:03:00.3]}
4. c3 {[%clk 0:03:00.3]} 4... Qb6 {[%clk 0:03:00.7]} 5. Nf3 {[%clk 0:03:00]}
5... Bd7 {[%clk 0:03:01.2]} 6. Be2 {[%clk 0:02:39.4]} 6... Bb5 {[%clk 0:03:01]}
7. dxc5 {[%clk 0:02:40]} 7... Bxc5 {[%clk 0:03:00.8]} 8. b4 {[%clk 0:02:40.5]}
8... Bxe2 {[%clk 0:03:00.5]} 9. Qxe2 {[%clk 0:02:40.3]} 9... Bf8 {[%clk
0:03:00.2]} 10. O-O {[%clk 0:02:39.9]} 10... Nc6 {[%clk 0:03:00.3]} 11. a3
{[%clk 0:02:34.9]} 11... Nge7 {[%clk 0:02:59.8]} 12. c4 {[%clk 0:02:35.1]} 12...
Nd4 {[%clk 0:02:56.2]} 13. Nxd4 {[%clk 0:02:32.8]} 13... Qxd4 {[%clk 0:02:57.1]}
14. Ra2 {[%clk 0:02:27.9]} 14... Qxc4 {[%clk 0:02:57.3]} 15. Qxc4 {[%clk
0:02:15.4]} 15... dxc4 {[%clk 0:02:58.2]} 16. Nd2 {[%clk 0:02:16.1]} 16... Rc8
{[%clk 0:02:58.2]} 17. Ne4 {[%clk 0:02:11.1]} 17... Nd5 {[%clk 0:02:58]} 18. Rc2
{[%clk 0:02:08]} 18... b5 {[%clk 0:02:53.4]} 19. Be3 {[%clk 0:02:07.6]} 19... a6
{[%clk 0:02:53]} 20. Bc5 {[%clk 0:02:04.5]} 20... f5 {[%clk 0:02:49.6]} 21. Nd6+
{[%clk 0:01:58.6]} 21... Bxd6 {[%clk 0:02:49.3]} 22. exd6 {[%clk 0:01:59.5]}
22... Kd7 {[%clk 0:02:37.6]} 23. Re1 {[%clk 0:01:59.1]} 23... Rhe8 {[%clk
0:02:36.3]} 24. g3 {[%clk 0:01:59.2]} 24... a5 {[%clk 0:02:32.5]} 25. Kg2 {[%clk
0:01:57.1]} 25... axb4 {[%clk 0:02:31.5]} 26. axb4 {[%clk 0:01:58]} 26... Ra8
{[%clk 0:02:31.7]} 27. Ree2 {[%clk 0:01:44.6]} 27... g5 {[%clk 0:02:27.7]} 28.
Re1 {[%clk 0:01:39.2]} 28... g4 {[%clk 0:02:27.6]} 29. f3 {[%clk 0:01:37.6]}
29... h5 {[%clk 0:02:27.4]} 30. f4 {[%clk 0:01:35.4]} 30... h4 {[%clk
0:02:24.6]} 31. Rce2 {[%clk 0:01:29.2]} 31... h3+ {[%clk 0:02:23.6]} 32. Kf2
{[%clk 0:01:29.4]} 32... Ra3 {[%clk 0:02:22.9]} 33. Rc2 {[%clk 0:01:28.4]} 33...
Nc3 {[%clk 0:02:09.3]} 34. Re5 {[%clk 0:01:24.8]} 34... Ne4+ {[%clk 0:02:06.8]}
35. Ke2 {[%clk 0:01:25.3]} 35... Rea8 {[%clk 0:01:53.7]} 36. Bd4 {[%clk
0:01:17.5]} 36... Ra2 {[%clk 0:01:50.9]} 37. Rxa2 {[%clk 0:01:16.5]} 37... Rxa2+
{[%clk 0:01:51.8]} 38. Ke3 {[%clk 0:01:17.4]} 38... Nxg3 {[%clk 0:01:49.3]} 39.
Rxb5 {[%clk 0:01:15.8]} 39... Nf1# {[%clk 0:01:49.6]} 0-1

[Event "Early-Titled-Tuesday-Blitz-April-02-2024"]
[Site "Chess.com"]
[Date "2024.04.02"]
[Round "4"]
[White "bipe137"]
[Black "RuperezA"]
[Result "0-1"]
[WhiteElo "2662"]
[BlackElo "2534"]
[TimeControl "180+1"]
[EndTime "8:36:25 PDT"]
[Termination "RuperezA won by resignation"]

1. d4 {[%clk 0:03:00.9]} 1... e6 {[%clk 0:03:00.9]} 2. c4 {[%clk 0:02:58.9]}
2... d5 {[%clk 0:03:00.2]} 3. Nc3 {[%clk 0:02:59.3]} 3... Nf6 {[%clk 0:03:00.2]}
4. cxd5 {[%clk 0:02:59.7]} 4... exd5 {[%clk 0:03:00.3]} 5. Bg5 {[%clk
0:03:00.1]} 5... c6 {[%clk 0:02:58.7]} 6. e3 {[%clk 0:03:00.5]} 6... Be7 {[%clk
0:02:57.8]} 7. Bd3 {[%clk 0:03:01]} 7... Nbd7 {[%clk 0:02:55.5]} 8. Nge2 {[%clk
0:03:00.1]} 8... Nh5 {[%clk 0:02:49.8]} 9. Bxe7 {[%clk 0:02:59.7]} 9... Qxe7
{[%clk 0:02:50.7]} 10. g4 {[%clk 0:02:59.8]} 10... Nhf6 {[%clk 0:02:47.5]} 11.
Ng3 {[%clk 0:03:00.4]} 11... g6 {[%clk 0:02:21.1]} 12. g5 {[%clk 0:02:52.3]}
12... Ng8 {[%clk 0:02:20.6]} 13. h4 {[%clk 0:02:52.9]} 13... h5 {[%clk
0:01:48.2]} 14. Qe2 {[%clk 0:02:43.5]} 14... Nb6 {[%clk 0:01:45.2]} 15. O-O-O
{[%clk 0:02:43.2]} 15... Bg4 {[%clk 0:01:37.4]} 16. f3 {[%clk 0:02:42.8]} 16...
Be6 {[%clk 0:01:38.1]} 17. a4 {[%clk 0:02:29.6]} 17... Qb4 {[%clk 0:01:26.3]}
18. Qc2 {[%clk 0:02:29.4]} 18... Ne7 {[%clk 0:01:24.3]} 19. e4 {[%clk
0:02:22.4]} 19... Qxd4 {[%clk 0:01:14.8]} 20. Nge2 {[%clk 0:02:20.2]} 20... Qb4
{[%clk 0:01:10.8]} 21. Nf4 {[%clk 0:02:17.2]} 21... dxe4 {[%clk 0:00:56.9]} 22.
Nxe4 {[%clk 0:01:46.8]} 22... Bb3 {[%clk 0:00:50.4]} 23. Qe2 {[%clk 0:01:37.6]}
23... Bxd1 {[%clk 0:00:47.8]} 24. Nf6+ {[%clk 0:01:37.3]} 24... Kf8 {[%clk
0:00:47.4]} 25. Rxd1 {[%clk 0:01:37.9]} 25... Qxf4+ {[%clk 0:00:47.5]} 0-1

[Event "Early-Titled-Tuesday-Blitz-April-02-2024"]
[Site "Chess.com"]
[Date "2024.04.02"]
[Round "4"]
[White "AlainBruxelles"]
[Black "MrChessSponge"]
[Result "1-0"]
[WhiteElo "2320"]
[BlackElo "2557"]
[TimeControl "180+1"]
[EndTime "8:36:30 PDT"]
[Termination "AlainBruxelles won by resignation"]

1. e4 {[%clk 0:03:00.9]} 1... c5 {[%clk 0:02:56.5]} 2. Nf3 {[%clk 0:03:00]} 2...
d6 {[%clk 0:02:54.7]} 3. d4 {[%clk 0:02:55.4]} 3... cxd4 {[%clk 0:02:55.6]} 4.
Nxd4 {[%clk 0:02:55.7]} 4... Nf6 {[%clk 0:02:55.5]} 5. Nc3 {[%clk 0:02:55.6]}
5... a6 {[%clk 0:02:54.8]} 6. g3 {[%clk 0:02:55.1]} 6... g6 {[%clk 0:02:53.9]}
7. Bg2 {[%clk 0:02:54.8]} 7... Bg7 {[%clk 0:02:54.8]} 8. O-O {[%clk 0:02:55.1]}
8... O-O {[%clk 0:02:55.5]} 9. h3 {[%clk 0:02:50.7]} 9... Nc6 {[%clk 0:02:53.4]}
10. Be3 {[%clk 0:02:49.9]} 10... Bd7 {[%clk 0:02:51.7]} 11. Nd5 {[%clk
0:02:39.8]} 11... Rc8 {[%clk 0:02:42.6]} 12. Rc1 {[%clk 0:02:32.5]} 12... b5
{[%clk 0:02:36]} 13. c3 {[%clk 0:02:29.6]} 13... Ne5 {[%clk 0:02:32.5]} 14. b3
{[%clk 0:02:25.1]} 14... Nc6 {[%clk 0:02:00.6]} 15. Qd2 {[%clk 0:02:20.7]} 15...
Nxd4 {[%clk 0:01:45.4]} 16. Bxd4 {[%clk 0:02:13.3]} 16... Nxd5 {[%clk
0:01:44.5]} 17. exd5 {[%clk 0:02:11.6]} 17... Bxd4 {[%clk 0:01:35.3]} 18. cxd4
{[%clk 0:02:07.6]} 18... Qb6 {[%clk 0:01:32.2]} 19. Rfe1 {[%clk 0:02:02.8]}
19... Rxc1 {[%clk 0:01:29.5]} 20. Rxc1 {[%clk 0:02:02.6]} 20... Rc8 {[%clk
0:01:29]} 21. Re1 {[%clk 0:02:01.7]} 21... e6 {[%clk 0:01:17.8]} 22. dxe6 {[%clk
0:01:59.4]} 22... Bxe6 {[%clk 0:01:17]} 23. d5 {[%clk 0:01:56.2]} 23... Bf5
{[%clk 0:01:12.7]} 24. g4 {[%clk 0:01:54]} 24... Rc2 {[%clk 0:00:58.1]} 25. Qf4
{[%clk 0:01:46.2]} 25... Bd7 {[%clk 0:00:31.7]} 26. Re7 {[%clk 0:01:42.7]} 1-0

[Event "Early-Titled-Tuesday-Blitz-April-02-2024"]
[Site "Chess.com"]
[Date "2024.04.02"]
[Round "4"]
[White "eagleclaw07"]
[Black "TERMINATOR_PC"]
[Result "1-0"]
[WhiteElo "2852"]
[BlackElo "2604"]
[TimeControl "180+1"]
[EndTime "8:36:38 PDT"]
[Termination "eagleclaw07 won on time"]

1. d4 {[%clk 0:03:00.9]} 1... Nf6 {[%clk 0:02:55.9]} 2. c4 {[%clk 0:03:01.4]}
2... e6 {[%clk 0:02:56.1]} 3. Nc3 {[%clk 0:03:00.8]} 3... Bb4 {[%clk 0:02:54.5]}
4. e3 {[%clk 0:02:59.9]} 4... O-O {[%clk 0:02:53.5]} 5. Bd3 {[%clk 0:03:00]}
5... d5 {[%clk 0:02:52.1]} 6. Nf3 {[%clk 0:02:59.2]} 6... b6 {[%clk 0:02:52]} 7.
O-O {[%clk 0:02:59]} 7... Ba6 {[%clk 0:02:50.4]} 8. cxd5 {[%clk 0:02:57.9]} 8...
exd5 {[%clk 0:02:45.5]} 9. Bxa6 {[%clk 0:02:52.7]} 9... Nxa6 {[%clk 0:02:46.4]}
10. Qa4 {[%clk 0:02:51]} 10... Qc8 {[%clk 0:02:45.7]} 11. Ne5 {[%clk 0:02:50.5]}
11... Bd6 {[%clk 0:02:13.3]} 12. Bd2 {[%clk 0:02:42.7]} 12... Re8 {[%clk
0:01:56.1]} 13. f4 {[%clk 0:02:27.2]} 13... Nb8 {[%clk 0:01:35.9]} 14. Rac1
{[%clk 0:02:25.9]} 14... a6 {[%clk 0:01:29.2]} 15. Qb3 {[%clk 0:02:17.5]} 15...
Qb7 {[%clk 0:01:08.4]} 16. Be1 {[%clk 0:02:16.8]} 16... c5 {[%clk 0:00:49.5]}
17. Bh4 {[%clk 0:02:15]} 17... Ne4 {[%clk 0:00:46.1]} 18. Nxe4 {[%clk 0:01:51]}
18... dxe4 {[%clk 0:00:21.7]} 19. dxc5 {[%clk 0:01:50.6]} 1-0

[Event "Early-Titled-Tuesday-Blitz-April-02-2024"]
[Site "Chess.com"]
[Date "2024.04.02"]
[Round "4"]
[White "emeli_chess"]
[Black "Firegrizzly"]
[Result "0-1"]
[WhiteElo "2406"]
[BlackElo "2655"]
[TimeControl "180+1"]
[EndTime "8:36:59 PDT"]
[Termination "Firegrizzly won on time"]

1. d4 {[%clk 0:03:00.9]} 1... Nf6 {[%clk 0:02:55]} 2. c4 {[%clk 0:03:00.4]} 2...
Nc6 {[%clk 0:02:52.1]} 3. Nf3 {[%clk 0:02:57.9]} 3... e6 {[%clk 0:02:52]} 4. Nc3
{[%clk 0:02:54.2]} 4... Bb4 {[%clk 0:02:51.3]} 5. Bd2 {[%clk 0:02:33]} 5... d5
{[%clk 0:02:50.9]} 6. cxd5 {[%clk 0:02:29.4]} 6... exd5 {[%clk 0:02:51.8]} 7. a3
{[%clk 0:02:25.5]} 7... Bxc3 {[%clk 0:02:49.8]} 8. Bxc3 {[%clk 0:02:25.4]} 8...
a5 {[%clk 0:02:50.5]} 9. e3 {[%clk 0:02:18.8]} 9... O-O {[%clk 0:02:50.3]} 10.
Bd3 {[%clk 0:02:17.9]} 10... Bg4 {[%clk 0:02:50.1]} 11. Qc2 {[%clk 0:02:13.2]}
11... Re8 {[%clk 0:02:48.5]} 12. h3 {[%clk 0:02:03.9]} 12... Bh5 {[%clk
0:02:47.5]} 13. g4 {[%clk 0:01:41.2]} 13... Bg6 {[%clk 0:02:47]} 14. Bxg6 {[%clk
0:01:39.7]} 14... hxg6 {[%clk 0:02:47.9]} 15. Ne5 {[%clk 0:01:27.3]} 15... Nxe5
{[%clk 0:02:47.2]} 16. dxe5 {[%clk 0:01:27.3]} 16... Ne4 {[%clk 0:02:48.1]} 17.
f3 {[%clk 0:01:22.6]} 17... Qh4+ {[%clk 0:02:46.8]} 18. Kd1 {[%clk 0:01:11.7]}
18... Nf2+ {[%clk 0:02:47]} 19. Ke2 {[%clk 0:01:09.9]} 19... Nxh1 {[%clk
0:02:47.9]} 20. Rxh1 {[%clk 0:01:08.7]} 20... c5 {[%clk 0:02:47.1]} 21. Be1
{[%clk 0:01:04.9]} 21... Qe7 {[%clk 0:02:46.1]} 22. f4 {[%clk 0:01:02.1]} 22...
g5 {[%clk 0:02:43.2]} 23. h4 {[%clk 0:00:55.9]} 23... gxf4 {[%clk 0:02:42.8]}
24. exf4 {[%clk 0:00:56.3]} 24... d4 {[%clk 0:02:42.3]} 25. Qe4 {[%clk
0:00:51.2]} 25... Rad8 {[%clk 0:02:40.2]} 26. h5 {[%clk 0:00:28.7]} 26... d3+
{[%clk 0:02:38.3]} 27. Kd2 {[%clk 0:00:26.9]} 27... Rd4 {[%clk 0:02:33.6]} 28.
Qf5 {[%clk 0:00:24.2]} 28... Qe6 {[%clk 0:02:33.9]} 29. Qxe6 {[%clk 0:00:17.9]}
29... fxe6 {[%clk 0:02:34.8]} 30. Rf1 {[%clk 0:00:08.4]} 30... Rf8 {[%clk
0:02:32.8]} 31. Bg3 {[%clk 0:00:06.4]} 31... c4 {[%clk 0:02:33.1]} 32. Rf3
{[%clk 0:00:05]} 32... b5 {[%clk 0:02:32.5]} 33. g5 {[%clk 0:00:04.7]} 33... Re4
{[%clk 0:02:31.9]} 34. Rf2 {[%clk 0:00:03.5]} 34... b4 {[%clk 0:02:27.3]} 35.
axb4 {[%clk 0:00:03.3]} 35... axb4 {[%clk 0:02:27.3]} 36. g6 {[%clk 0:00:03.7]}
36... Rd8 {[%clk 0:02:26.7]} 37. f5 {[%clk 0:00:02.4]} 37... exf5 {[%clk
0:02:24.6]} 38. Rxf5 {[%clk 0:00:02.4]} 38... Re2+ {[%clk 0:02:23.7]} 39. Kd1
{[%clk 0:00:02.6]} 39... c3 {[%clk 0:02:24.6]} 40. bxc3 {[%clk 0:00:02.3]} 40...
bxc3 {[%clk 0:02:24.2]} 41. e6 {[%clk 0:00:02.2]} 41... c2+ {[%clk 0:02:24.3]}
0-1

[Event "Early-Titled-Tuesday-Blitz-April-02-2024"]
[Site "Chess.com"]
[Date "2024.04.02"]
[Round "4"]
[White "AniJak"]
[Black "JaackCamel"]
[Result "1-0"]
[WhiteElo "2380"]
[BlackElo "2175"]
[TimeControl "180+1"]
[EndTime "8:37:01 PDT"]
[Termination "AniJak won by checkmate"]

1. e4 {[%clk 0:03:00.9]} 1... e6 {[%clk 0:02:54]} 2. d4 {[%clk 0:03:01.2]} 2...
d5 {[%clk 0:02:53.3]} 3. Nc3 {[%clk 0:03:00.9]} 3... Bb4 {[%clk 0:02:52.3]} 4.
Ne2 {[%clk 0:03:00.9]} 4... dxe4 {[%clk 0:02:51.4]} 5. a3 {[%clk 0:03:00.8]}
5... Be7 {[%clk 0:02:50.6]} 6. Nxe4 {[%clk 0:03:00]} 6... Nf6 {[%clk 0:02:47.1]}
7. N2g3 {[%clk 0:02:59.4]} 7... Nbd7 {[%clk 0:02:45.7]} 8. Bd3 {[%clk
0:02:57.7]} 8... O-O {[%clk 0:02:43.7]} 9. O-O {[%clk 0:02:57.4]} 9... c5 {[%clk
0:02:35.1]} 10. Nxc5 {[%clk 0:02:53]} 10... Nxc5 {[%clk 0:02:30.7]} 11. dxc5
{[%clk 0:02:53.9]} 11... Bxc5 {[%clk 0:02:27.2]} 12. Bg5 {[%clk 0:02:50.9]}
12... Be7 {[%clk 0:02:23.9]} 13. Qf3 {[%clk 0:02:45.2]} 13... h6 {[%clk
0:02:21.4]} 14. Bxf6 {[%clk 0:02:36.6]} 14... Bxf6 {[%clk 0:02:20.4]} 15. Rad1
{[%clk 0:02:37.5]} 15... Qa5 {[%clk 0:02:11.3]} 16. c3 {[%clk 0:02:33.5]} 16...
e5 {[%clk 0:01:46.6]} 17. Nh5 {[%clk 0:02:23.9]} 17... Bg5 {[%clk 0:01:37.8]}
18. Qg3 {[%clk 0:01:44.8]} 18... Qa4 {[%clk 0:00:54.4]} 19. b4 {[%clk
0:01:35.1]} 19... f5 {[%clk 0:00:20.4]} 20. Qxe5 {[%clk 0:01:19.3]} 20... Qc6
{[%clk 0:00:14.7]} 21. Qxg7# {[%clk 0:01:16.3]} 1-0